Cogmind - Beta 15 @@@ ROGUE MODE // 2025.10.11 @ 19:23:50 Player: DietSnapple Result: Destroyed self with Grenade Launcher Performance ------------- Evolutions (0) 0 Regions Visited (3) 600 Robots Destroyed (18) 90 Value Destroyed (308) 308 Prototype IDs (2) 40 Alien Tech Used (0) 0 Bonus (-107) -107 TOTAL SCORE: 931 Bonus ------- Friendly Fire -107 Cogmind --------- Core Integrity 0/250 Matter 290/300 Energy 100/100 System Corruption 7% Temperature Cool (0) Movement Core (250) Ox4 Location -10/Subcaves Parts ------- > --- POWER (1) -------- (None) > --- PROPULSION (2) --- (None) > --- UTILITY (2) ------ Medium Storage Unit Signal Interpreter > --- WEAPON (2) ------- Grenade Launcher > --- INVENTORY (10) --- Large Storage Unit Advanced Visual Processing Unit Sensor Array Improved Sensor Array Hardened Medium Armor Plating Sensor Drone Bay Grenade Launcher Grenade Launcher Scrap Shield Fragment (41) Peak State ------------ > --- POWER ------------ Ion Engine > --- PROPULSION ------- Wheel Wheel > --- UTILITY ---------- Large Storage Unit Light Armor Plating > --- WEAPON ----------- Assault Rifle Light Assault Rifle > --- INVENTORY -------- Light Ion Engine Light Treads Aluminum Leg Aluminum Leg Small Storage Unit Medium Storage Unit Sensor Array EM Pulse Gun Assault Rifle Grenade Launcher [Rating: 8] Favorites ----------- Power Light Ion Engine Engine Light Ion Engine Propulsion Light Treads Treads Light Treads Leg Aluminum Leg Wheel Wheel Utility Medium Storage Unit Storage Medium Storage Unit Processor Signal Interpreter Protection Light Armor Plating Weapon EM Pulse Gun Energy Gun EM Pulse Gun Ballistic Gun Assault Rifle Launcher Grenade Launcher Build | -11 -10 -10 -10 ------- Run | Yrd Mat Min Sub Slots Evolved . | . . . . Power . | . . . . Propulsion . | . . . . Utility . | . . . . Weapon . | . . . . Parts Attached 26 | 10 15 . 1 Power 2 | 2 . . . Engine 2 | 2 . . . Core . | . . . . Reactor . | . . . . Propulsion 7 | 4 3 . . Treads 2 | 2 . . . Leg 2 | 2 . . . Wheel 3 | . 3 . . Hover . | . . . . Flight . | . . . . Utility 6 | 1 5 . . Device . | . . . . Storage 3 | 1 2 . . Processor 1 | . 1 . . Hackware . | . . . . Protection 2 | . 2 . . Artifact . | . . . . Weapon 11 | 3 7 . 1 Energy Gun 6 | 1 5 . . Energy Cannon . | . . . . Ballistic Gun 3 | 2 1 . . Ballistic Cannon . | . . . . Launcher 2 | . 1 . 1 Special Weapon . | . . . . Impact Weapon . | . . . . Slashing Weapon . | . . . . Piercing Weapon . | . . . . Special Melee Weapon . | . . . . Unidentified Prototypes . | . . . . Parts Lost 11 | . 6 . 5 Power 1 | . . . 1 Propulsion 4 | . 3 . 1 Utility 2 | . 2 . . Weapon 4 | . 1 . 3 Highest Loss Streak 5 | . 4 . 5 To Critical Strikes . | . . . . Average Backups 8 | 2 8 9 8 Power . | . . . . Propulsion 1 | 1 2 1 . Utility 3 | . 2 4 6 Weapon 3 | . 2 3 2 Tool/Special . | . . . . Unused Backups 9 | . 2 1 6 Power 1 | . 1 . . Propulsion 1 | . . 1 . Utility 5 | . . . 5 Weapon 2 | . 1 . 1 Tool/Special . | . . . . Average Slot Usage (%) 83 | . 87 85 51 Engine 13 | . 14 14 3 Treads 8 | . 4 14 2 Leg 1 | . 3 . . Wheel 6 | . 14 . . Storage 14 | . 14 14 14 Processor 8 | . 1 14 14 Protection 3 | . 7 . . Energy Gun 18 | . 11 28 5 Ballistic Gun 6 | . 14 . . Peak Build Rating 8 | 6 8 8 8 Average Rating 6 | 3 6 7 5 On Entrance 5 | . 6 6 8 Naked Turns . | . . . . Heaviest Build 32 | 13 32 17 17 Greatest Support 40 | 40 20 20 20 Greatest Overweight (x) 4 | . 3 . 4 Average Overweight (x) . | . . . 3 Largest Inventory Capacity 15 | 8 15 10 10 Average Capacity 10 | 5 12 10 10 Most Carried 12 | 5 12 10 10 Average Carried 8 | 2 8 9 8 Final Capacity 10 | 8 10 10 10 Final Carried 10 | 5 8 10 9 Class Distribution -------------------- 100% | Mutant Dominant Class ---------------- Mutant | -10/Materials Mutant | -10/Mines Mutant | -10/Subcaves Resources | -11 -10 -10 -10 ----------- Run | Yrd Mat Min Sub Matter Collected 718 | 151 388 86 93 Remotely . | . . . . Salvage Created 612 | . 493 . 119 Parts 35 | . 31 . 4 Haulers Intercepted 2 | . 2 . . Recyclers Shooed 1 | . 1 . . Parts Field Recycled . | . . . . Retrieved Matter . | . . . . Parts Self-Destructed 6 | . . . 6 Prevented . | . . . . Kills | -11 -10 -10 -10 ------- Run | Yrd Mat Min Sub Combat Hostiles Destroyed 13 | . 11 . 2 Guns 10 | . 9 . 1 AOE 3 | . 2 . 1 Classes Destroyed 8 | . 6 . 2 Worker 1 | . 1 . . Hauler 2 | . 2 . . Recycler 1 | . 1 . . Watcher 1 | . 1 . . Swarmer 9 | . 9 . . Grunt 2 | . 2 . . Subdweller 2 | . . . 2 Scientist 1 | . . . 1 Best Kill Streak 5 | . 5 . 2 Combat Bots Only 3 | . 3 . 2 Max Kills in Single Turn 2 | . 2 . 1 Gunslinging . | . . . . Exploded 1 | . 1 . 1 Melee . | . . . . Uniques/NPCs Destroyed . | . . . . Combat | -11 -10 -10 -10 -------- Run | Yrd Mat Min Sub Hostile Shots Fired 82 | . 58 . 24 Missed 20 | . 15 . 5 Hits 62 | . 43 . 19 Projectile 62 | . 43 . 19 Critical Strikes 1 | . 1 . . Damage Taken 1212 | . 729 40 443 Core 256 | . 131 . 125 Absorbed by Shields . | . . . . Core Remaining (%) 100 | 100 . . . Volleys Fired 72 | . 56 . 16 Largest 2 | . 2 . 2 Hottest 80 | . 80 . 80 Shots Fired 130 | . 104 4 22 Gun 124 | . 103 4 17 Cannon . | . . . . Launcher 6 | . 1 . 5 Special . | . . . . Kinetic 58 | . 58 . . Thermal . | . . . . Explosive 6 | . 1 . 5 Electromagnetic 66 | . 45 4 17 Robot Hit Streak 11 | . 11 . 6 Robot Miss Streak 4 | . 4 2 3 Penetration Max . | . . . . Secondary Targets 3 | . 2 . 1 Max Gunslinging Chain 1 | . 1 . 1 Shots Hit Robots 71 | . 57 . 14 Core Hits 35 | . 27 1 7 Critical Kills . | . . . . Critical Parts Destroyed . | . . . . Critical Strikes . | . . . . Melee Attacks . | . . . . Impact . | . . . . Slashing . | . . . . Piercing . | . . . . Sneak Attacks . | . . . . Combat Hostiles . | . . . . Follow-up Attacks . | . . . . Damage Inflicted 1237 | . 894 3 340 Guns 859 | . 709 . 150 Cannons . | . . . . Explosions 374 | . 184 . 190 Melee . | . . . . Ramming 4 | . 1 3 . Kinetic 446 | . 446 . . Thermal 166 | . 166 . . Explosive 208 | . 18 . 190 Electromagnetic 413 | . 263 . 150 Impact . | . . . . Slashing . | . . . . Piercing . | . . . . Highest Corruption 7 | . 7 7 7 Average Corruption 6 | . 5 7 7 Corruption Purged . | . . . . Corruption Blocked . | . . . . Effects 64 | . 22 39 3 Message Errors 20 | . 7 13 . Matter Fused 15 | . 5 9 1 Heat Flow Errors 10 | . 3 7 . Energy Discharges 3 | . . 2 1 Parts Fused 2 | . 1 1 . Data Loss (minor) 7 | . 4 2 1 Misfires 5 | . 1 4 . Alerts 1 | . . 1 . Weapon Failures 1 | . 1 . . Overload Shots . | . . . . Overflow Damage 96 | . 91 . 5 Projectiles . | . . . . Explosions 96 | . 91 . 5 Melee . | . . . . Knockbacks . | . . . . Impact . | . . . . Kinetic . | . . . . Secondary . | . . . . Self-Inflicted Damage 296 | . 238 . 58 Shots 7 | . 5 . 2 Rammed 2 | . 1 1 . Targets Rammed 2 | . 1 1 . Kicked . | . . . . Crushed . | . . . . Highest Temperature 272 | . 216 272 . Average Temperature 69 | . 55 99 . Received Heat Transfer 225 | . 141 . 84 Siege Activations . | . . . . Martial Activations . | . . . . Shielding Activations . | . . . . Robots Disrupted . | . . . . Combat Hostiles . | . . . . Robots Corrupted . | . . . . Combat Hostiles . | . . . . Parts Fried 1 | . 1 . . Impact Corruptions . | . . . . Robots Melted . | . . . . Combat Hostiles . | . . . . Parts Melted . | . . . . Heat Transferred 150 | . 150 . . Parts Sabotaged . | . . . . Parts Stolen . | . . . . Parts Stripped . | . . . . Power Chain Reactions 4 | . 4 . . Alert | -11 -10 -10 -10 ------- Run | Yrd Mat Min Sub Maximum Alert Level . | . . . . Low Security (%) 100 | 100 100 100 . Level 1 . | . . . . Level 2 . | . . . . Level 3 . | . . . . Level 4 . | . . . . Level 5 . | . . . . High Security . | . . . . Max Security . | . . . . Peak Influence 136 | . 136 40 . Initial 40 | . . 40 . Average 19 | . 39 1 . Influence Increases 405 | . 405 . . Destroy 0b10 Robot/C 220 | . 220 . . Destroy 0b10 Robot/NC 25 | . 25 . . Destroy Leader 46 | . 46 . . Successful Hack 16 | . 16 . . Disable Machine 45 | . 45 . . Destroy Structure 53 | . 53 . . Influence Decreases 405 | . 299 106 . Entered New Map 66 | . . 66 . Time Decay 299 | . 259 40 . Lost Part 40 | . 40 . . Squads Dispatched . | . . . . Investigation . | . . . . Extermination . | . . . . Reinforcement . | . . . . Assault . | . . . . Garrison . | . . . . Intercept . | . . . . Searches Triggered . | . . . . Construction Impeded . | . . . . Haulers Reinforced . | . . . . Active Scanning Responses . | . . . . Cargo Convoy Interrupts . | . . . . Stealth | -11 -10 -10 -10 --------- Run | Yrd Mat Min Sub Distress Signals 1 | . 1 . . Communications Jammed . | . . . . Distress Signals . | . . . . Times Spotted 19 | . 16 . 3 Peak Tracking Total 3 | . 3 . 2 Tactical Retreats . | . . . . Traps | -11 -10 -10 -10 ------- Run | Yrd Mat Min Sub Traps Triggered 7 | . 6 1 . Indirectly . | . . . . Trap Hack Attempts . | . . . . Triggered . | . . . . Disarmed . | . . . . Reprogrammed . | . . . . Reused . | . . . . Traps Extracted . | . . . . Installed . | . . . . Triggered . | . . . . Machines | -11 -10 -10 -10 ---------- Run | Yrd Mat Min Sub Machines Disabled 3 | . 3 . . Max in Single Turn 2 | . 2 . . Machines Repaired . | . . . . Machines Dismantled . | . . . . Machines Sabotaged . | . . . . Overloaded Fab Kills . | . . . . Hacking | -11 -10 -10 -10 --------- Run | Yrd Mat Min Sub Machines Accessed 9 | . 7 2 . Terminals 5 | . 5 . . Fabricators . | . . . . Repair Stations . | . . . . Recycling Units 2 | . 2 . . Scanalyzers . | . . . . Garrison Access . | . . . . Total Hacks 15 | . 13 2 . Successful 10 | . 8 2 . Failed 5 | . 5 . . Catastrophic 2 | . 2 . . Database Lockouts . | . . . . Manual 8 | . 8 . . Terminals 10 | . 10 . . Fabricators . | . . . . Repair Stations . | . . . . Recycling Units 3 | . 3 . . Scanalyzers . | . . . . Garrison Access . | . . . . Terminal Hacks 5 | . 3 2 . Record 1 | . 1 . . Prototype ID Bank 1 | . 1 . . Open Door 2 | . . 2 . Branch Access Points 1 | . 1 . . Fabricator Hacks . | . . . . Repair Station Hacks . | . . . . Recycling Unit Hacks 3 | . 3 . . Report Inventory 2 | . 2 . . Retrieve Components 1 | . 1 . . Scanalyzer . | . . . . Garrison Access Hacks . | . . . . Unauthorized Hacks 2 | . 2 . . Terminals 2 | . 2 . . Botnet 1 | . 1 . . Skim 1 | . 1 . . Fabricators . | . . . . Repair Stations . | . . . . Recycling Units . | . . . . Scanalyzers . | . . . . Garrison Access . | . . . . Data Cores Recovered . | . . . . Used . | . . . . Hacking Detections 5 | . 5 . . Full Trace Events . | . . . . Feedback Events . | . . . . Feedback Blocked . | . . . . Robot Schematics Acquired . | . . . . Robots Built . | . . . . Authchips . | . . . . Time . | . . . . Total Robot Build Rating . | . . . . Part Schematics Acquired . | . . . . Parts Built . | . . . . Authchips . | . . . . Time . | . . . . Total Part Build Rating . | . . . . Parts Repaired . | . . . . Time . | . . . . Parts Recycled . | . . . . Recycled Matter . | . . . . Retrieved Matter . | . . . . Retrieved Components 3 | . 3 . . Parts Scanalyzed . | . . . . Part Schematics Acquired . | . . . . Parts Damaged . | . . . . Bothacking | -11 -10 -10 -10 ------------ Run | Yrd Mat Min Sub Used RIF Installer . | . . . . Robots Hacked . | . . . . Non-combat . | . . . . Combat . | . . . . Robot Hacks Applied . | . . . . Relay Couplers Released . | . . . . Fabnet Peak Effective % . | . . . . Robots Rewired . | . . . . Allies Hacked . | . . . . Hacks Repelled . | . . . . Allies | -11 -10 -10 -10 -------- Run | Yrd Mat Min Sub Total Allies . | . . . . Largest Group . | . . . . Highest-Rated Group . | . . . . Highest-Rated Ally . | . . . . Total Orders . | . . . . Ally Attacks . | . . . . Total Damage . | . . . . Kills . | . . . . Allies Corrupted . | . . . . Allies Melted . | . . . . Intel | -11 -10 -10 -10 ------- Run | Yrd Mat Min Sub Active Infowar (turns) . | . . . . Robot Analysis Total . | . . . . Derelict Logs Recovered 1 | . . 1 . Drone Launches . | . . . . Drone Recoveries . | . . . . Exploration | -11 -10 -10 -10 ------------- Run | Yrd Mat Min Sub Turns Passed 2577 | 137 1098 1162 180 Spaces Moved 1687 | 114 793 722 58 Core 94 | 40 . . 54 Treads 927 | 20 181 722 4 Legs 156 | 54 102 . . Wheels 510 | . 510 . . Hover . | . . . . Flight . | . . . . Fastest Speed 50 | 50 95 160 160 Average Speed 137 | 102 113 160 242 Slowest Speed 250 | 160 160 160 250 Overloaded Moves . | . . . . Propulsion Burnouts . | . . . . Robots Hopped . | . . . . Potential Cave-ins . | . . . . Cave-ins Triggered . | . . . . Exploration Rate (%) 50 | 5 91 99 5 Regions Visited 3 Branch Regions 2 Pre-discovered Areas . | . . . . Known Exits Taken 2 | . 1 1 . Unknown Exits Taken 1 | 1 . . . Scrap Searched 2 | . . 1 1 Spaces Dug 3 | . . . 3 Terrain Destroyed 69 | . 52 . 17 Melee . | . . . . Projectile . | . . . . AOE 69 | . 52 . 17 Terrain Rammed . | . . . . Walls Destroyed . | . . . . Machines Disabled . | . . . . Actions | -11 -10 -10 -10 --------- Run | Yrd Mat Min Sub Total 1825 | 129 889 730 77 Wait 3 | . 3 . . Move 1684 | 113 792 721 58 Hop . | . . . . Pick Up 22 | 6 10 5 1 Fast Attach 11 | 5 6 . . Attach 5 | 1 2 . 2 Detach 2 | . 2 . . Swap 13 | 4 9 . . Drop 11 | . 8 3 . Fire 72 | . 56 . 16 Melee . | . . . . Ram . | . . . . Kick . | . . . . Crush 2 | . 1 1 . Escape Stasis . | . . . . Rewire . | . . . . Trap . | . . . . Miscellaneous . | . . . . Route ------- -11/Scrapyard -10/Materials (discovered 4 exits: *Mat x3 / *Min) -10/Mines (discovered 4 exits: *Mat x2 / *Exi / *Sub) -10/Subcaves History --------- Turn | Location | Event 3 | -11/Scrapyard | Discovered new exit (range 15) 138 | -11/Scrapyard | Entered Materials 306 | -10/Materials | Build established: Mutant 384 | -10/Materials | Discovered new exit (range 16) 404 | -10/Materials | Discovered new exit (range 16) 551 | -10/Materials | Identified exit to Mines 613 | -10/Materials | Discovered new exit (range 13) 768 | -10/Materials | Discovered new exit (range 15) 910 | -10/Materials | Lost 4 parts (2n1u1w) 1105 | -10/Materials | Core integrity fell below 50% 1236 | -10/Materials | Entered Mines 1243 | -10/Mines | Discovered new exit (range 9) 1254 | -10/Mines | Identified exit to Materials 1338 | -10/Mines | Found the Drone Emporium 1347 | -10/Mines | Found Prototype Device 1425 | -10/Mines | Deemed a non-threat by the Exiles lab entrance 1426 | -10/Mines | Discovered new exit (range 5) 1433 | -10/Mines | Identified exit to Exiles 1471 | -10/Mines | Discovered exit to Materials (range 9) 1542 | -10/Mines | YI-UF0 nonchalantly dropped a Grenade Launcher on the ground 1776 | -10/Mines | Learned 2 Materials zone layouts 2052 | -10/Mines | Met a Derelict who couldn't figure out how to use a Trap Extractor 2329 | -10/Mines | Discovered new exit (range 7) 2341 | -10/Mines | Identified exit to Subcaves 2398 | -10/Mines | Entered Subcaves 2399 | -10/Subcaves | Approached by a straggling Scientist 2402 | -10/Subcaves | Ambushed by Subdwellers from Twisted Machinery 2464 | -10/Subcaves | Lost 5 parts (1p1n3w) 2567 | -10/Subcaves | Disturbed a concealed Subdweller 2568 | -10/Subcaves | Core integrity fell below 20% 2578 | -10/Subcaves | Destroyed self with Grenade Launcher Last Messages --------------- 02451_ Subatomizers dissect the Corrupted Sub. Power Source. 02456_ Destroyed Wheel. 02458_ T1-0FA(c) destroyed. [Achievement: Backstab] 02464_ The unstable cave ceiling collapses. 02465_ Subatomizers dissect the Corrupted Sub. Power Source, destroying it. 02493_ Subatomizers dissect the Corrupted Sub. Monowheel. 02494_ The unstable cave ceiling collapses. 02495_ Acquired 27 matter. 02497_ Acquired 51 matter. 02502_ Acquired Scrap Shield Fragment. 02530_ Subatomizers dissect the Corrupted Sub. Monowheel. 02545_ System corrupted: Matter fused (-7). 02566_ Searching scrap... 02566_ Found Spk. Treads. 02566_ Found 36 Matter. 02567_ KW-P22(R) angrily emerges from the Twisted Machinery. 02567_ System corrupted: Component data lost. 02567_ Acquired 15 matter. 02578_ Destroyed Sub. Monowheel. Map ----- +----------------------------------------------------+ | | | | | | | | | | | | | | | | | | | ?????????????????????????????????????????????????? | | ?????????????????????????????????????????????????? | | ?????????????????????????????????????????????????? | | ?????????????????????????????????????????????????? | | ?????????????????????????????????????????????????? | | ?????????????????????????????????????????????????? | | ?????????????????????????????????????????????????? | | ?????????????????????????????????????????????????? | | ????????????????????????###?###??????????????????? | | ????????????????????????# #$ #??????????????????? | | ?????????????????????????$ &$#??????????????????? | | ?????????????????????????##&<#???????????????????? | | ?????????????????????????#%=###??????????????????? | | ????????????????????????### # #??????????????????? | | ?????###########?????#### R < #??????????????????? | | ??##?#" #??#### ### #??????????????? | | ??# ##"" #?## @ #??????????? | | ?## ##"" #??# ### #?????????? | | ## " ##### #?## #?????????? | | # " #"[ # # #??# ## #????????? | | # " # #??# ##? #???????? | | " =* ##??###???##### ##???????? | | " " ##???????????????##????????? | | " "" ## #??????????????????????????? | | ## ## ## #??????????????????????????? | | ?#### #??????????????????????????? | | " ????## #??????????????????????????? | | ""#?????### #??????????????????????????? | | """????????# #??????????????????????????? | | ?""????????## #??????????????????????????? | | ????????????# #??????????????????????????? | | ????????????# #??????????????????????????? | | ???????????? #??????????????????????????? | | ???????????? #####??????????????????????????? | | ???????????? #??????????????????????????????? | | ???????????? ??????????????????????????????? | | ???????????? ???????????????????????????????? | | ?????????????????????????????????????????????????? | | ?????????????????????????????????????????????????? | | ?????????????????????????????????????????????????? | | ?????????????????????????????????????????????????? | +----------------------------------------------------+ Best States ------------- Heat Dissipation 25 Energy Generation 10 Energy Capacity 250 Matter Stores 300 Matter Capacity 300 Sight Range 16 Terrain Scan Density 10 Armor Coverage 150 Evasion (%) 55 Recoil Reduction 2 Item Schematics ----------------- None Robot Schematics ------------------ None Fabricated ------------ Nothing Repaired ---------- Nothing Alien Tech Used ----------------- None Achievements -------------- Backstab Challenges ------------ None Game ------ Seed IntegrityUtilityExpander Manual? 0 Play Time 00:17:18 Cumulative 36.5 hours Start 2025.10.11 @ 01:41:50 End 2025.10.11 @ 19:23:50 Sessions 7 Manual Loads 0 Difficulty Rogue Special Mode None Game No. 87 Rogue 80 Adventurer 7 Explorer 0 Win Type - Total 1 Types 1/0/0/0/0/0/0/0/0/0 Lore% 9 Gallery% 30 Achievement% 30 Wizard Run 0 Options --------- Layout 0 ASCII 0 Keyboard 1 Movement Vi Keybinds 0 Fullscreen 1 Font 18/SmallcapsGlow Map View 112x50 Zoom Use 0% Tactical HUD 1 Map Filters NONE Filters NONE Steam X RUN: 1d22f175-ed68-4617-928d-5e99c4350257